[Event "FIDE World Rapid-ch Open 2018"]
[White "Makarov, Marat"]
[Black "Hirneise, Jens"]
[Site "St. Petersburg"]
[Round "10.84"]
[Annotator "ChessBase"]
[Result "1/2-1/2"]
[Date "2018.12.27"]
[WhiteElo "2505"]
[BlackElo "2371"]
[PlyCount "64"]
[TimeControl "900+10"]

1. Nf3 {[%emt 0:0:0]} Nf6 {[%emt 0:0:0]} 2. c4 {[%emt 0:0:0]} g6 {[%emt 0:0:0]
} 3. d4 {[%emt 0:0:2]} Bg7 {[%emt 0:0:0]} 4. g3 {[%emt 0:0:0]} 0-0 {[%emt 0:0:0]} 5. Bg2 {[%emt 0:0:1]} d6 {[%emt 0:0:0]} 6. 0-0 {[%emt 0:0:3]
} Nc6 {[%emt 0:0:1]} 7. Nc3 {[%emt 0:0:8]} Bf5 {[%emt 0:0:0]} 8. d5 {[%emt 0:0:7]} Na5 {[%emt 0:0:7]} 9. Nd4 {[%emt 0:0:6]} Bd7 {[%emt 0:0:25]
} 10. b3 {[%emt 0:3:11]} c5 {[%emt 0:0:5]} 11. Nc2 {[%emt 0:0:0]} a6 {[%emt 0:0:41]} 12. Qd3 {[%emt 0:0:17]} Rb8 {[%emt 0:0:33]} 13. Bd2 {[%emt 0:0:8]} b5 {[%emt 0:0:24]} 14. Rab1 {[%emt 0:0:13]} Qc7 {[%emt 0:1:58]
} 15. e4 {[%emt 0:0:38]} Ng4 {[%emt 0:0:55]} 16. f4 {[%emt 0:0:0]} bxc4 {[%emt 0:1:6]} 17. bxc4 {[%emt 0:0:3]} Rxb1 {[%emt 0:0:28]} 18. Rxb1 {[%emt 0:3:34]} Bd4+ {[%emt 0:1:27]} 19. Nxd4 {[%emt 0:1:19]} cxd4 {[%emt 0:0:1]} 20. Qxd4 {[%emt 0:0:39]} Nxc4 {[%emt 0:0:28]} 21. Bc1 {[%emt 0:1:57]
} Rc8 {[%emt 0:1:18]} 22. h3 {[%emt 0:2:24]} Nge3 {[%emt 0:0:0]} 23. Bxe3 {[%emt 0:1:10]} Nxe3 {[%emt 0:0:1]} 24. Qxe3 {[%emt 0:0:24]} Qxc3 {[%emt 0:0:2]} 25. Qxc3 {[%emt 0:0:11]} Rxc3 {[%emt 0:0:1]} 26. Rb7 {[%emt 0:1:15]
} Bb5 {[%emt 0:0:15]} 27. Rxe7 {[%emt 0:0:26]} Kf8 {[%emt 0:0:0]} 28. Rb7 {[%emt 0:0:11]} Rc1+ {[%emt 0:0:31]} 29. Kh2 {[%emt 0:0:23]} Rc2 {[%emt 0:0:13]} 30. Kg1 {[%emt 0:0:10]} Rc1+ {[%emt 0:0:1]} 31. Kh2 {[%emt 0:0:31]
} Rc2 {[%emt 0:0:1]} 32. Kg1 {[%emt 0:0:3]} Rc1+ {[%emt 0:0:0]} 1/2-1/2

[Event "FIDE World Rapid-ch Open 2018"]
[White "Zakhartsov, Vladimir"]
[Black "Shaposhnikov, Evgeny"]
[Site "St. Petersburg"]
[Round "10.85"]
[Annotator "ChessBase"]
[Result "0-1"]
[Date "2018.12.27"]
[WhiteElo "2486"]
[BlackElo "2576"]
[PlyCount "97"]
[TimeControl "900+10"]

1. e4 {[%emt 0:0:0]} c5 {[%emt 0:0:0]} 2. Nf3 {[%emt 0:0:0]} e6 {[%emt 0:0:0]} 3. g3 {[%emt 0:0:0]} Nc6 {[%emt 0:0:0]} 4. Bg2 {[%emt 0:0:1]} Nf6 {[%emt 0:0:1]} 5. Nc3 {[%emt 0:0:1]} e5 {[%emt 0:0:8]} 6. 0-0 {[%emt 0:0:0]} g6 {[%emt 0:0:18]} 7. d3 {[%emt 0:0:5]} Bg7 {[%emt 0:0:3]} 8. Nd2 {[%emt 0:0:1]} 0-0 {[%emt 0:0:5]} 9. Nc4 {[%emt 0:0:3]} d6 {[%emt 0:0:0]} 10. h3 {[%emt 0:1:4]} Nh5 {[%emt 0:0:25]} 11. a4 {[%emt 0:0:47]} a6 {[%emt 0:0:29]
} 12. a5 {[%emt 0:0:21]} Be6 {[%emt 0:0:4]} 13. Nd5 {[%emt 0:0:0]} Bxd5 {[%emt 0:0:24]} 14. exd5 {[%emt 0:0:2]} Ne7 {[%emt 0:0:4]} 15. Rb1 {[%emt 0:0:39]} Nf6 {[%emt 0:1:6]} 16. Nb6 {[%emt 0:0:32]} Rb8 {[%emt 0:0:1]
} 17. b4 {[%emt 0:0:6]} cxb4 {[%emt 0:0:37]} 18. Rxb4 {[%emt 0:0:13]
} Nd7 {[%emt 0:0:2]} 19. Nc4 {[%emt 0:0:53]} Qc7 {[%emt 0:0:0]} 20. Ba3 {[%emt 0:1:39]} Rfd8 {[%emt 0:1:2]} 21. Qb1 {[%emt 0:1:12]} Nf5 {[%emt 0:0:57]} 22. c3 {[%emt 0:1:46]} h5 {[%emt 0:0:59]} 23. Be4 {[%emt 0:0:49]
} Ne7 {[%emt 0:0:45]} 24. Rc1 {[%emt 0:1:52]} Nf6 {[%emt 0:0:0]} 25. Nb6 {[%emt 0:0:21]} Nc8 {[%emt 0:1:44]} 26. Qb3 {[%emt 0:1:55]} Bf8 {[%emt 0:3:30]} 27. Rc4 {[%emt 0:1:42]} Qe7 {[%emt 0:0:5]} 28. Bg2 {[%emt 0:0:10]
} Na7 {[%emt 0:0:13]} 29. Rb1 {[%emt 0:0:13]} Nb5 {[%emt 0:0:0]} 30. Bc1 {[%emt 0:0:4]} Nd7 {[%emt 0:0:34]} 31. Be3 {[%emt 0:0:9]} Nc5 {[%emt 0:1:3]} 32. Bxc5 {[%emt 0:0:17]} dxc5 {[%emt 0:0:1]} 33. Re4 {[%emt 0:0:13]
} Qc7 {[%emt 0:0:26]} 34. Rbe1 {[%emt 0:0:31]} Bg7 {[%emt 0:0:0]} 35. R4e2 {[%emt 0:0:12]} Bf6 {[%emt 0:0:26]} 36. h4 {[%emt 0:0:16]} Kg7 {[%emt 0:0:1]} 37. Nc4 {[%emt 0:0:9]} Nd6 {[%emt 0:0:46]} 38. Nb6 {[%emt 0:0:58]
} Re8 {[%emt 0:0:13]} 39. Bh3 {[%emt 0:0:6]} Re7 {[%emt 0:0:0]} 40. Qa4 {[%emt 0:0:41]} Rd8 {[%emt 0:0:6]} 41. c4 {[%emt 0:0:12]} Kg8 {[%emt 0:0:29]} 42. Qa3 {[%emt 0:0:4]} Rde8 {[%emt 0:0:35]} 43. Na4 {[%emt 0:0:29]
} e4 {[%emt 0:0:40]} 44. Nb6 {[%emt 0:0:21]} Bd4 {[%emt 0:0:0]} 45. Kg2 {[%emt 0:0:18]} f5 {[%emt 0:0:26]} 46. dxe4 {[%emt 0:0:13]} Nxe4 {[%emt 0:0:8]} 47. Qa4 {[%emt 0:0:16]} Bxf2 {[%emt 0:0:17]} 48. d6 {[%emt 0:0:12]
} Qxd6 {[%emt 0:0:7]} 49. Qb3 {[%emt 0:0:12]} 0-1

[Event "FIDE World Rapid-ch Open 2018"]
[White "Drygalov, Sergey"]
[Black "Iljiushenok, Ilia"]
[Site "St. Petersburg"]
[Round "10.86"]
[Annotator "ChessBase"]
[Result "1/2-1/2"]
[Date "2018.12.27"]
[WhiteElo "2446"]
[BlackElo "2533"]
[PlyCount "93"]
[TimeControl "900+10"]

1. e4 {[%emt 0:0:0]} c5 {[%emt 0:0:0]} 2. Nf3 {[%emt 0:0:0]} e6 {[%emt 0:0:0]} 3. d4 {[%emt 0:0:0]} cxd4 {[%emt 0:0:0]} 4. Nxd4 {[%emt 0:0:0]} Nc6 {[%emt 0:0:0]} 5. Nc3 {[%emt 0:0:0]} Qc7 {[%emt 0:0:0]} 6. Qd3 {[%emt 0:1:32]
} Nxd4 {[%emt 0:0:7]} 7. Qxd4 {[%emt 0:0:2]} a6 {[%emt 0:0:0]} 8. Be3 {[%emt 0:0:15]} Ne7 {[%emt 0:0:3]} 9. 0-0-0 {[%emt 0:0:34]} Nc6 {[%emt 0:0:8]} 10. Qb6 {[%emt 0:0:4]} Qb8 {[%emt 0:0:14]} 11. f4 {[%emt 0:0:0]} d6 {[%emt 0:0:35]} 12. e5 {[%emt 0:1:29]} dxe5 {[%emt 0:4:38]} 13. Bc5 {[%emt 0:1:26]} Qa7 {[%emt 0:2:31]} 14. Qxc6+ {[%emt 0:0:4]} bxc6 {[%emt 0:0:3]
} 15. Bxa7 {[%emt 0:0:2]} Rxa7 {[%emt 0:0:1]} 16. fxe5 {[%emt 0:0:1]
} g6 {[%emt 0:0:52]} 17. Bc4 {[%emt 0:1:58]} Bh6+ {[%emt 0:0:0]} 18. Kb1 {[%emt 0:0:7]} Bf4 {[%emt 0:0:2]} 19. Rde1 {[%emt 0:1:15]} Ke7 {[%emt 0:1:14]} 20. g3 {[%emt 0:0:54]} Bd2 {[%emt 0:0:36]} 21. Rd1 {[%emt 0:0:1]
} Bxc3 {[%emt 0:0:9]} 22. bxc3 {[%emt 0:0:1]} Rd8 {[%emt 0:0:0]} 23. Rxd8 {[%emt 0:0:29]} Kxd8 {[%emt 0:0:1]} 24. g4 {[%emt 0:0:50]} a5 {[%emt 0:1:22]} 25. a4 {[%emt 0:2:5]} h6 {[%emt 0:1:2]} 26. h4 {[%emt 0:1:3]
} Ba6 {[%emt 0:0:8]} 27. Bxa6 {[%emt 0:0:34]} Rxa6 {[%emt 0:0:0]} 28. h5 {[%emt 0:0:23]} gxh5 {[%emt 0:0:29]} 29. Rxh5 {[%emt 0:0:9]} Ke7 {[%emt 0:0:10]} 30. Rxh6 {[%emt 0:0:33]} Ra8 {[%emt 0:0:1]} 31. g5 {[%emt 0:0:39]
} Rg8 {[%emt 0:0:15]} 32. Rh5 {[%emt 0:0:2]} Kf8 {[%emt 0:0:0]} 33. Kb2 {[%emt 0:0:58]} Kg7 {[%emt 0:0:1]} 34. c4 {[%emt 0:0:37]} Rb8+ {[%emt 0:0:23]} 35. Kc3 {[%emt 0:0:5]} c5 {[%emt 0:0:8]} 36. Rh1 {[%emt 0:0:0]} Rb4 {[%emt 0:0:2]} 37. Ra1 {[%emt 0:0:6]} Kg6 {[%emt 0:0:5]} 38. Rf1 {[%emt 0:0:1]} Rxa4 {[%emt 0:0:26]} 39. Rf6+ {[%emt 0:0:1]} Kxg5 {[%emt 0:0:14]
} 40. Rxf7 {[%emt 0:0:3]} Ra3+ {[%emt 0:0:1]} 41. Kd2 {[%emt 0:0:11]
} Rh3 {[%emt 0:0:25]} 42. Ra7 {[%emt 0:0:9]} Rh4 {[%emt 0:0:0]} 43. Rxa5 {[%emt 0:0:28]} Rxc4 {[%emt 0:0:2]} 44. c3 {[%emt 0:0:1]} Kf5 {[%emt 0:0:21]} 45. Kd3 {[%emt 0:0:1]} Re4 {[%emt 0:0:4]} 46. Rxc5 {[%emt 0:0:14]
} Rxe5 {[%emt 0:0:1]} 47. Rxe5+ {[%emt 0:0:10]} 1/2-1/2

[Event "FIDE World Rapid-ch Open 2018"]
[White "Kabanov, Nikolai"]
[Black "Lintchevski, Daniil"]
[Site "St. Petersburg"]
[Round "10.87"]
[Annotator "ChessBase"]
[Result "1-0"]
[Date "2018.12.27"]
[WhiteElo "2450"]
[BlackElo "2516"]
[PlyCount "83"]
[TimeControl "900+10"]

1. e4 {[%emt 0:0:0]} c5 {[%emt 0:0:0]} 2. Nf3 {[%emt 0:0:0]} e6 {[%emt 0:0:0]} 3. d4 {[%emt 0:0:14]} cxd4 {[%emt 0:0:0]} 4. Nxd4 {[%emt 0:0:1]} Nf6 {[%emt 0:0:0]} 5. Nc3 {[%emt 0:0:4]} Nc6 {[%emt 0:0:0]} 6. Be2 {[%emt 0:0:57]
} d6 {[%emt 0:0:2]} 7. 0-0 {[%emt 0:0:8]} Be7 {[%emt 0:0:2]
} 8. Be3 {[%emt 0:0:55]} 0-0 {[%emt 0:0:3]} 9. Kh1 {[%emt 0:0:36]} Qc7 {[%emt 0:0:34]
} 10. Nb3 {[%emt 0:0:45]} a6 {[%emt 0:0:32]} 11. f4 {[%emt 0:0:0]} b5 {[%emt 0:0:11]} 12. Bd3 {[%emt 0:0:27]} Bb7 {[%emt 0:0:23]} 13. Qf3 {[%emt 0:0:32]} Nb4 {[%emt 0:0:30]} 14. Qh3 {[%emt 0:1:14]} d5 {[%emt 0:0:0]} 15. e5 {[%emt 0:0:13]} Ne4 {[%emt 0:0:4]} 16. Bd4 {[%emt 0:1:28]} g6 {[%emt 0:0:58]} 17. a3 {[%emt 0:1:12]} Nxd3 {[%emt 0:0:30]} 18. cxd3 {[%emt 0:0:3]
} Nxc3 {[%emt 0:0:4]} 19. Bxc3 {[%emt 0:0:4]} d4 {[%emt 0:0:0]} 20. Nxd4 {[%emt 0:0:9]} Qd7 {[%emt 0:0:47]} 21. f5 {[%emt 0:0:45]} gxf5 {[%emt 0:4:16]} 22. Nxf5 {[%emt 0:0:23]} Kh8 {[%emt 0:0:3]} 23. Nxe7 {[%emt 0:3:15]
} Qxe7 {[%emt 0:0:7]} 24. Bb4 {[%emt 0:0:3]} Qg5 {[%emt 0:0:0]} 25. Bxf8 {[%emt 0:0:7]} Rxf8 {[%emt 0:0:1]} 26. Qg3 {[%emt 0:0:16]} Qh5 {[%emt 0:0:37]} 27. Qf4 {[%emt 0:1:42]} Rg8 {[%emt 0:1:15]} 28. Qf6+ {[%emt 0:0:3]
} Rg7 {[%emt 0:0:2]} 29. Rf2 {[%emt 0:0:2]} h6 {[%emt 0:0:0]} 30. Kg1 {[%emt 0:1:0]} Kh7 {[%emt 0:0:10]} 31. Re1 {[%emt 0:1:1]} Qg4 {[%emt 0:0:27]} 32. Qf4 {[%emt 0:0:17]} Qh5 {[%emt 0:1:50]} 33. Qd2 {[%emt 0:0:13]
} Rg5 {[%emt 0:1:7]} 34. Re3 {[%emt 0:0:9]} Bd5 {[%emt 0:0:0]} 35. Rg3 {[%emt 0:0:33]} Rxe5 {[%emt 0:0:59]} 36. Rh3 {[%emt 0:0:5]} Qg5 {[%emt 0:0:3]} 37. Qxg5 {[%emt 0:0:20]} Rxg5 {[%emt 0:0:2]} 38. Rxf7+ {[%emt 0:0:8]} Kg6 {[%emt 0:0:2]} 39. Rf2 {[%emt 0:0:1]} Re5 {[%emt 0:0:0]} 40. Rg3+ {[%emt 0:0:11]} Kh7 {[%emt 0:0:4]} 41. Rf7+ {[%emt 0:0:7]} Kh8 {[%emt 0:0:1]} 42. Kf2 {[%emt 0:0:2]} 1-0

[Event "FIDE World Rapid-ch Open 2018"]
[White "Tsoi, Dmitry"]
[Black "Teske, Henrik"]
[Site "St. Petersburg"]
[Round "10.88"]
[Annotator "ChessBase"]
[Result "1-0"]
[Date "2018.12.27"]
[WhiteElo "2424"]
[BlackElo "2483"]
[PlyCount "45"]
[TimeControl "900+10"]

1. e4 {[%emt 0:0:0]} e6 {[%emt 0:0:0]} 2. d3 {[%emt 0:0:0]} c5 {[%emt 0:0:0]} 3. f4 {[%emt 0:0:5]} Nc6 {[%emt 0:0:1]} 4. Nf3 {[%emt 0:0:1]} d5 {[%emt 0:0:5]} 5. Be2 {[%emt 0:0:3]} Nf6 {[%emt 0:0:17]} 6. Nbd2 {[%emt 0:0:0]} b5 {[%emt 0:0:16]} 7. 0-0 {[%emt 0:0:7]} c4 {[%emt 0:1:20]} 8. exd5 {[%emt 0:1:13]} Qb6+ {[%emt 0:0:10]} 9. Kh1 cxd3 {[%emt 0:0:39]} 10. dxc6 {[%emt 0:0:56]
} dxe2 {[%emt 0:0:4]} 11. Qxe2 {[%emt 0:0:2]} Nd5 {[%emt 0:0:0]} 12. Ne4 {[%emt 0:0:45]} b4 {[%emt 0:0:14]} 13. Rd1 {[%emt 0:1:27]} Ba6 {[%emt 0:0:11]} 14. Qe1 {[%emt 0:0:6]} Qxc6 {[%emt 0:0:24]} 15. Nd4 {[%emt 0:0:51]
} Qb6 {[%emt 0:0:4]} 16. f5 {[%emt 0:0:9]} Be7 {[%emt 0:0:0]} 17. fxe6 {[%emt 0:0:18]} fxe6 {[%emt 0:0:3]} 18. Nc5 {[%emt 0:2:5]} Qxc5 {[%emt 0:3:47]} 19. Nxe6 {[%emt 0:0:5]} Qxc2 {[%emt 0:1:51]} 20. Nxg7+ {[%emt 0:2:4]} Kf8 {[%emt 0:0:1]} 21. Bh6 {[%emt 0:0:13]} Bb7 {[%emt 0:0:0]} 22. Rxd5 {[%emt 0:1:11]} Qc6 {[%emt 0:2:24]} 23. Nf5+ {[%emt 0:0:11]} 1-0

[Event "FIDE World Rapid-ch Open 2018"]
[White "Zablotsky, Sergei"]
[Black "Pogosyan, Stefan"]
[Site "St. Petersburg"]
[Round "10.89"]
[Annotator "ChessBase"]
[Result "1-0"]
[Date "2018.12.27"]
[WhiteElo "2511"]
[BlackElo "2365"]
[PlyCount "83"]
[TimeControl "900+10"]

1. d4 {[%emt 0:0:0]} Nf6 {[%emt 0:0:0]} 2. c4 {[%emt 0:0:0]} c5 {[%emt 0:0:0]} 3. d5 {[%emt 0:0:0]} b5 {[%emt 0:0:0]} 4. Qc2 {[%emt 0:0:6]} g6 {[%emt 0:0:5]
} 5. e4 {[%emt 0:0:4]} d6 {[%emt 0:0:4]} 6. cxb5 {[%emt 0:0:0]} Bg7 {[%emt 0:0:5]} 7. Nc3 {[%emt 0:0:7]} 0-0 {[%emt 0:0:3]} 8. Nf3 {[%emt 0:0:30]
} a6 {[%emt 0:0:6]} 9. a4 {[%emt 0:0:52]} axb5 {[%emt 0:1:1]
} 10. Bxb5 {[%emt 0:0:4]} Qb6 {[%emt 0:0:29]} 11. 0-0 {[%emt 0:0:18]} Ba6 {[%emt 0:1:31]
} 12. Nd2 {[%emt 0:0:43]} Bxb5 {[%emt 0:0:10]} 13. Nxb5 {[%emt 0:0:2]
} Na6 {[%emt 0:0:28]} 14. Nc4 {[%emt 0:0:7]} Qb7 {[%emt 0:0:0]} 15. Bd2 {[%emt 0:0:10]} Nb4 {[%emt 0:2:0]} 16. Bxb4 {[%emt 0:0:41]} cxb4 {[%emt 0:0:1]} 17. b3 {[%emt 0:0:27]} Nd7 {[%emt 0:0:5]} 18. Rab1 {[%emt 0:0:15]
} Nc5 {[%emt 0:0:17]} 19. Rfe1 {[%emt 0:0:47]} Rfc8 {[%emt 0:0:0]} 20. Qe2 {[%emt 0:0:10]} h5 {[%emt 0:1:42]} 21. h3 {[%emt 0:0:34]} h4 {[%emt 0:0:11]} 22. Red1 {[%emt 0:0:56]} Qa6 {[%emt 0:0:31]} 23. e5 {[%emt 0:1:53]
} dxe5 {[%emt 0:0:54]} 24. Nxe5 {[%emt 0:0:7]} Kf8 {[%emt 0:0:0]} 25. Nc6 {[%emt 0:0:31]} Bf6 {[%emt 0:1:34]} 26. Nxb4 {[%emt 0:0:6]} Qb7 {[%emt 0:0:0]} 27. Nc6 {[%emt 0:0:39]} Nd7 {[%emt 0:0:10]} 28. Qe3 {[%emt 0:0:37]
} Nb6 {[%emt 0:0:21]} 29. Nb4 {[%emt 0:0:31]} Rd8 {[%emt 0:0:0]} 30. d6 {[%emt 0:0:55]} Kg7 {[%emt 0:0:53]} 31. Rbc1 {[%emt 0:1:17]} Rac8 {[%emt 0:0:26]} 32. Qf3 {[%emt 0:1:12]} Qxf3 {[%emt 0:1:25]} 33. gxf3 {[%emt 0:0:2]
} exd6 {[%emt 0:0:8]} 34. Rxc8 {[%emt 0:0:50]} Rxc8 {[%emt 0:0:0]} 35. Nxd6 {[%emt 0:1:19]} Rd8 {[%emt 0:0:51]} 36. Nc6 {[%emt 0:0:4]} Ra8 {[%emt 0:0:2]} 37. a5 {[%emt 0:0:15]} Nd7 {[%emt 0:0:7]} 38. Nf5+ {[%emt 0:1:34]
} gxf5 {[%emt 0:0:7]} 39. Rxd7 {[%emt 0:0:2]} Bc3 {[%emt 0:0:0]} 40. b4 {[%emt 0:0:6]} Bxb4 {[%emt 0:0:1]} 41. Nxb4 {[%emt 0:0:3]} Rxa5 {[%emt 0:0:1]} 42. Rd4 {[%emt 0:0:23]} 1-0

[Event "FIDE World Rapid-ch Open 2018"]
[White "Vaisser, Anatoli"]
[Black "Hirneise, Tobias"]
[Site "St. Petersburg"]
[Round "10.90"]
[Annotator "ChessBase"]
[Result "1/2-1/2"]
[Date "2018.12.27"]
[WhiteElo "2505"]
[BlackElo "2464"]
[PlyCount "83"]
[TimeControl "900+10"]

1. d4 {[%emt 0:0:0]} d5 {[%emt 0:0:0]} 2. c4 {[%emt 0:0:0]} c6 {[%emt 0:0:0]} 3. cxd5 {[%emt 0:0:0]} cxd5 {[%emt 0:0:0]} 4. Bf4 {[%emt 0:0:0]} Nc6 {[%emt 0:0:1]} 5. e3 {[%emt 0:0:0]} Nf6 {[%emt 0:0:2]} 6. Nc3 {[%emt 0:0:0]
} Bg4 {[%emt 0:0:2]} 7. f3 {[%emt 0:0:43]} Bd7 {[%emt 0:0:3]
} 8. g4 {[%emt 0:0:7]} e6 {[%emt 0:0:24]} 9. Bd3 {[%emt 0:0:8]} a6 {[%emt 0:1:34]
} 10. Nge2 {[%emt 0:0:11]} g6 {[%emt 0:2:19]} 11. h4 {[%emt 0:0:0]} h5 {[%emt 0:0:12]} 12. g5 {[%emt 0:0:9]} Ng8 {[%emt 0:0:0]} 13. e4 {[%emt 0:0:41]} Nge7 {[%emt 0:0:5]} 14. Bc2 {[%emt 0:2:8]} Bg7 {[%emt 0:0:0]} 15. Be3 {[%emt 0:0:12]} 0-0 {[%emt 0:0:20]} 16. e5 {[%emt 0:0:33]} Na5 {[%emt 0:0:54]} 17. b3 {[%emt 0:0:10]} Rc8 {[%emt 0:0:19]} 18. Qd2 {[%emt 0:0:17]
} b5 {[%emt 0:0:14]} 19. Rc1 {[%emt 0:0:39]} Qb6 {[%emt 0:0:0]} 20. Ng3 {[%emt 0:0:45]} Rc7 {[%emt 0:0:21]} 21. Nce2 {[%emt 0:0:32]} Rfc8 {[%emt 0:0:35]} 22. Kf2 {[%emt 0:0:10]} Nac6 {[%emt 0:0:22]} 23. Bb1 {[%emt 0:0:50]
} Qa5 {[%emt 0:0:9]} 24. Qb2 {[%emt 0:2:0]} b4 {[%emt 0:0:0]} 25. Nf4 {[%emt 0:0:14]} Na7 {[%emt 0:0:30]} 26. Ngxh5 {[%emt 0:1:27]} gxh5 {[%emt 0:0:34]} 27. Nxh5 {[%emt 0:0:6]} Qa3 {[%emt 0:0:6]} 28. Qxa3 {[%emt 0:0:32]
} bxa3 {[%emt 0:0:2]} 29. Nf6+ {[%emt 0:0:20]} Bxf6 {[%emt 0:0:0]} 30. gxf6 {[%emt 0:0:17]} Rxc1 {[%emt 0:0:17]} 31. Bxc1 {[%emt 0:0:0]} Nf5 {[%emt 0:0:3]} 32. Bxf5 {[%emt 0:1:7]} exf5 {[%emt 0:0:4]} 33. Rg1+ {[%emt 0:0:32]} Kh8 {[%emt 0:0:3]} 34. Bxa3 {[%emt 0:0:1]} Rc2+ {[%emt 0:0:58]
} 35. Ke3 {[%emt 0:0:10]} Rxa2 {[%emt 0:0:44]} 36. Bc5 {[%emt 0:0:58]
} Nc6 {[%emt 0:0:23]} 37. Rg5 {[%emt 0:0:9]} Nd8 {[%emt 0:0:0]} 38. Rh5+ {[%emt 0:0:7]} Kg8 {[%emt 0:0:0]} 39. Rg5+ {[%emt 0:0:1]} Kh8 {[%emt 0:0:41]} 40. Rh5+ {[%emt 0:0:2]} Kg8 {[%emt 0:0:6]} 41. Rg5+ {[%emt 0:0:3]
} Kh8 {[%emt 0:0:7]} 42. Rh5+ {[%emt 0:1:24]} 1/2-1/2

[Event "FIDE World Rapid-ch Open 2018"]
[White "Vlassov, Nikolai"]
[Black "Mamatov, Melis"]
[Site "St. Petersburg"]
[Round "10.91"]
[Annotator "NA"]
[Result "1/2-1/2"]
[Date "2018.12.27"]
[WhiteElo "2401"]
[BlackElo "2223"]
[PlyCount "124"]
[TimeControl "900+10"]

1. e4 {[%emt 0:0:0]} c5 {[%emt 0:0:0]} 2. c3 {[%emt 0:0:0]} e6 {[%emt 0:0:0]} 3. d4 {[%emt 0:0:0]} d5 {[%emt 0:0:25]} 4. exd5 {[%emt 0:0:0]} exd5 {[%emt 0:0:9]} 5. Nf3 {[%emt 0:0:0]} Nc6 {[%emt 0:0:26]} 6. Be3 {[%emt 0:0:1]
} cxd4 {[%emt 0:0:36]} 7. Nxd4 {[%emt 0:0:2]} Nf6 {[%emt 0:0:0]} 8. Be2 {[%emt 0:0:1]} Bd6 {[%emt 0:0:14]} 9. 0-0 {[%emt 0:0:3]} 0-0 {[%emt 0:0:2]
} 10. Nd2 {[%emt 0:0:3]} Bd7 {[%emt 0:0:40]} 11. Re1 {[%emt 0:0:0]} a6 {[%emt 0:0:15]} 12. Nf1 {[%emt 0:0:2]} Re8 {[%emt 0:0:48]} 13. Bg5 {[%emt 0:0:11]} Be5 {[%emt 0:0:35]} 14. Nf3 {[%emt 0:0:18]} Be6 {[%emt 0:2:45]
} 15. Nxe5 {[%emt 0:1:5]} Nxe5 {[%emt 0:0:1]} 16. Qd4 {[%emt 0:0:13]
} Nc6 {[%emt 0:0:50]} 17. Qh4 {[%emt 0:0:5]} h6 {[%emt 0:0:0]} 18. Bxf6 {[%emt 0:0:2]} Qxf6 {[%emt 0:0:1]} 19. Qxf6 {[%emt 0:0:2]} gxf6 {[%emt 0:0:0]} 20. Ng3 {[%emt 0:0:28]} f5 {[%emt 0:3:19]} 21. Rad1 {[%emt 0:0:48]
} Red8 {[%emt 0:0:23]} 22. Bf3 {[%emt 0:0:33]} b5 {[%emt 0:0:0]} 23. a3 {[%emt 0:0:10]} a5 {[%emt 0:0:8]} 24. Nh5 {[%emt 0:0:13]} Ne7 {[%emt 0:0:30]
} 25. Rd4 {[%emt 0:1:12]} Ra6 {[%emt 0:0:35]} 26. Red1 {[%emt 0:1:16]
} Nc6 {[%emt 0:0:42]} 27. Rh4 {[%emt 0:0:7]} Ne5 {[%emt 0:0:0]} 28. Be2 {[%emt 0:0:29]} Rb6 {[%emt 0:0:6]} 29. Nf4 {[%emt 0:4:13]} Kg7 {[%emt 0:1:14]} 30. Nd3 {[%emt 0:0:15]} Nc6 {[%emt 0:0:31]} 31. Bf3 {[%emt 0:1:12]
} Ne7 {[%emt 0:1:30]} 32. Nc5 {[%emt 0:0:24]} Rdb8 {[%emt 0:0:0]} 33. Rhd4 {[%emt 0:1:5]} b4 {[%emt 0:0:13]} 34. cxb4 axb4 35. a4 {[%emt 0:0:31]
} Rc8 {[%emt 0:0:15]} 36. Nb3 {[%emt 0:0:20]} Rc4 {[%emt 0:0:0]} 37. Be2 {[%emt 0:0:25]} Rc2 {[%emt 0:0:17]} 38. R4d2 {[%emt 0:0:13]} Rxd2 {[%emt 0:0:5]} 39. Rxd2 {[%emt 0:0:2]} Nc6 {[%emt 0:0:23]} 40. a5 {[%emt 0:0:18]
} Rb8 {[%emt 0:0:0]} 41. a6 {[%emt 0:0:7]} Ne5 {[%emt 0:0:0]} 42. Nd4 {[%emt 0:1:41]} Nc4 {[%emt 0:0:15]} 43. Rc2 {[%emt 0:1:29]} b3 {[%emt 0:0:4]} 44. Rc3 {[%emt 0:0:2]} Ra8 {[%emt 0:0:8]} 45. Rxb3 {[%emt 0:0:26]
} Rxa6 {[%emt 0:0:1]} 46. h4 {[%emt 0:0:7]} Ra1+ {[%emt 0:0:0]} 47. Kh2 {[%emt 0:0:3]} Rb1 {[%emt 0:0:4]} 48. Rb7 {[%emt 0:0:6]} Kf6 {[%emt 0:0:13]} 49. b3 {[%emt 0:0:25]} Nd2 {[%emt 0:0:11]} 50. b4 {[%emt 0:0:0]} f4 {[%emt 0:0:1]} 51. b5 {[%emt 0:0:14]} Ne4 {[%emt 0:0:19]} 52. Bd3 {[%emt 0:1:17]} Rd1 {[%emt 0:0:1]} 53. Nxe6 {[%emt 0:0:8]} fxe6 {[%emt 0:0:18]
} 54. Bxe4 {[%emt 0:0:3]} dxe4 {[%emt 0:0:0]} 55. Rc7 {[%emt 0:0:19]
} Rb1 {[%emt 0:0:24]} 56. g3 {[%emt 0:0:17]} e3 {[%emt 0:0:10]
} 57. fxe3 {[%emt 0:0:3]} fxe3 {[%emt 0:0:5]} 58. Rc2 {[%emt 0:0:3]} Rd1 {[%emt 0:0:20]} 59. b6 {[%emt 0:0:10]} Rd2+ {[%emt 0:0:5]} 60. Rxd2 {[%emt 0:0:1]
} exd2 {[%emt 0:0:1]} 61. b7 {[%emt 0:0:0]} d1=Q {[%emt 0:0:0]} 62. b8=Q {[%emt 0:0:2]} Qc2+ {[%emt 0:0:8]} 1/2-1/2